bitfinex-derivatives/quotes_ETHF0:USTF0_20250824
["timestamp","ask_amount","ask_price","bid_price","bid_amount"]
[1755993602637,1.38153907,4781.7,4781.6,0.90334119]
[1755993603435,1.38153907,4781.7,4781.6,1.06394119]
[1755993604244,1.38153907,4781.7,4781.6,1.29804119]
[1755993604435,1.38153907,4781.7,4781.6,0.96604119]
[1755993605237,1.14982,4781.4,4781.3,0.2336]
[1755993605436,1.79699029,4781.4,4781.3,0.2336]
[1755993605738,0.41847,4780.9,4780.8,3.3678]
[1755993605934,1.29497,4780.9,4780.8,3.62248965]
[1755993606135,1.79704029,4780.9,4780.8,4.52118965]
[1755993606342,1.79704029,4780.9,4780.8,4.3401]
[1755993609141,1.37857029,4780.9,4780.8,4.3401]
[1755993610037,0.50207029,4780.9,4780.8,4.75857]
[1755993610239,0.00526878,4781.7,4780.8,3.7976]
[1755993610444,0.5004869,4781.6,4781.5,1.1323]
[1755993611135,0.5004869,4781.6,4781.5,1.39453275]
[1755993611335,1.0866869,4781.6,4781.5,1.39453275]
[1755993611644,1.2317869,4781.6,4781.5,1.39453275]
[1755993612239,1.3769869,4781.6,4781.5,1.39453275]
[1755993612637,1.0866869,4781.6,4781.5,1.39453275]
[1755993613542,0.8511869,4781.6,4781.5,1.39453275]
[1755993614044,0.5004869,4781.6,4781.5,1.39453275]
[1755993614236,0.50566495,4781.6,4781.5,1.39453275]
[1755993615444,0.00517805,4781.6,4781.5,1.39453275]
[1755993616236,0.00517805,4781.6,4781.5,1.39454689]
[1755993618544,0.00517805,4781.6,4781.5,1.39451306]
[1755993619743,0.02533588,4781.6,4781.5,1.39451306]
[1755993620044,0.90183588,4781.6,4781.5,1.39451306]
[1755993621342,0.61153588,4781.6,4781.5,1.39451306]
[1755993621544,0.02533588,4781.6,4781.5,1.39451306]
[1755993624551,0.02533588,4781.6,4781.5,1.57767161]
[1755993624750,0.02533588,4781.6,4781.5,1.81357161]
[1755993625551,0.41829,4782.9,4782.8,1.1346]
[1755993625750,1.14959,4782.9,4782.8,4.83813451]
[1755993625948,1.65001259,4782.9,4782.8,4.83813451]
[1755993626143,1.50491259,4782.9,4782.8,4.576]
[1755993626350,1.50491259,4782.9,4782.8,4.85060082]
[1755993626650,0.50042259,4782.9,4782.8,4.85060082]
[1755993626846,0.85112259,4782.9,4782.8,4.85060082]
[1755993627150,1.41722259,4782.9,4782.8,4.85060082]
[1755993627846,1.08662259,4782.9,4782.8,4.85060082]
[1755993628047,0.50042259,4782.9,4782.8,4.85060082]
[1755993628254,0.50042259,4782.9,4782.8,4.85050492]
[1755993628746,18.977,4783.0,4782.8,4.02480492]
[1755993628946,18.977,4783.0,4782.9,1.64270492]
[1755993629251,18.977,4783.0,4782.9,1.3682]
[1755993629645,0.3507,4783.2,4782.9,1.3682]
[1755993629948,19.47592326,4783.1,4783.0,1.3682]
[1755993630351,0.49992326,4783.1,4783.0,1.3682]
[1755993630552,1.00447,4783.1,4783.0,0.5425]
[1755993630751,0.3507,4783.5,4783.0,0.5425]
[1755993630948,18.975,4783.1,4783.0,0.5425]
[1755993631146,18.975,4783.1,4783.0,1.3682]
[1755993632254,30.55223,4783.6,4783.5,1.3682]
[1755993632459,30.134,4783.6,4783.5,1.3682]
[1755993632753,49.108,4783.6,4783.5,4.576]
[1755993632949,18.974,4783.6,4783.5,4.99424]
[1755993633656,0.3686,4784.3,4784.2,1.3437]
[1755993633952,19.3426,4784.3,4784.2,4.5515]
[1755993634152,0.5645,4784.3,4784.2,4.5515]
[1755993634357,19.8688,4784.3,4784.2,4.5515]
[1755993640050,19.8658,4784.3,4784.2,4.5515]
[1755993641161,20.28397,4784.3,4784.2,4.5515]
[1755993642656,1.31297,4784.3,4784.2,4.5515]
[1755993642857,20.28197,4784.3,4784.2,4.5515]
[1755993643662,20.13737,4784.3,4784.2,4.5515]
[1755993644161,20.28197,4784.3,4784.2,4.5515]
[1755993644461,20.28097,4784.3,4784.2,4.5515]
[1755993646761,1.31297,4784.3,4784.2,4.5515]
[1755993646963,20.28097,4784.3,4784.2,4.5515]
[1755993649561,20.28097,4784.3,4784.2,1.3437]
[1755993649760,20.28097,4784.3,4784.2,4.5515]
[1755993652057,1.31297,4784.3,4784.2,4.5515]
[1755993652259,30.131,4785.1,4784.2,4.5515]
[1755993652463,0.8948,4784.8,4784.7,4.5515]
[1755993652761,19.8608,4784.8,4784.7,4.5515]
[1755993656764,20.35020285,4784.8,4784.7,4.5515]
[1755993658557,0.5645,4784.8,4784.7,4.5515]
[1755993658868,19.5295,4784.8,4784.7,4.5515]
[1755993659069,19.6741,4784.8,4784.7,4.5515]
[1755993659366,19.8598,4784.8,4784.7,4.5515]
[1755993660362,0.8948,4784.8,4784.7,4.5515]
[1755993660560,19.8598,4784.8,4784.7,4.5515]
[1755993661157,0.8948,4784.8,4784.7,4.5515]
[1755993661360,19.8598,4784.8,4784.7,4.82144888]
[1755993663066,19.8588,4784.8,4784.7,4.82144888]
[1755993663468,20.34939238,4784.8,4784.7,4.82154547]
[1755993663864,19.8588,4784.8,4784.7,4.82154547]
[1755993664070,20.34939265,4784.8,4784.7,4.82154547]
[1755993664371,19.8588,4784.8,4784.7,4.82154547]
[1755993665371,0.5777,4785.2,4785.1,0.5455]
[1755993665671,19.95879,4785.2,4785.1,1.63964547]
[1755993665862,0.41808,4785.4,4785.1,0.99929728]
[1755993666062,3.2078,4786.4,4785.0,0.41811]
[1755993666063,0.3547,4785.5,4785.4,1.3696]
[1755993666272,18.963,4785.5,4785.4,2.24146409]
[1755993666573,19.3177,4785.5,4785.4,1.55334862]
[1755993666771,19.4624,4785.5,4785.4,1.3696]
[1755993666969,19.7034,4785.5,4785.4,1.56568602]
[1755993667168,0.7404,4785.5,4785.4,1.56568602]
[1755993667474,19.7034,4785.5,4785.4,1.565686]
[1755993667674,19.8954,4785.5,4785.4,1.565686]
[1755993668166,0.1447,4785.8,4785.6,0.41805]
[1755993668370,0.9324,4786.4,4786.3,1.3696]
[1755993668572,19.8954,4786.4,4786.3,4.86813239]
[1755993668970,19.8954,4786.4,4786.3,5.06418496]
[1755993669475,19.8954,4786.4,4786.3,4.86813239]
[1755993669867,0.9324,4786.4,4786.3,4.86813239]
[1755993670868,0.9571,4786.4,4786.3,3.89163239]
[1755993671064,19.9211,4786.4,4786.3,3.89163239]
[1755993671272,0.9324,4786.4,4786.3,4.86813239]
[1755993671468,19.9074,4786.4,4786.3,4.86813239]
[1755993671668,0.9324,4786.4,4786.3,4.86813239]
[1755993671867,0.7481,4786.4,4786.3,4.86813239]
[1755993672068,19.1207,4786.7,4786.3,4.86813239]
[1755993672268,1.31077,4786.6,4786.5,1.3696]
[1755993672475,1.31077,4786.6,4786.5,1.66033239]
[1755993672675,0.8928,4786.6,4786.5,1.66033239]
[1755993672870,0.5957,4786.6,4786.5,1.66033239]
[1755993673674,0.7404,4786.6,4786.5,1.66033239]
[1755993673874,18.975,4786.8,4786.5,1.66033239]
[1755993674072,19.77865,4786.8,4786.7,1.3696]
[1755993674271,19.93105,4786.8,4786.7,1.66033239]
[1755993674480,19.97065,4786.8,4786.7,1.66033239]
[1755993674672,20.32535,4786.8,4786.7,1.66033239]
[1755993676467,20.32535,4786.8,4786.7,1.66459032]
[1755993676867,20.32535,4786.8,4786.7,1.66452499]
[1755993677875,19.9074,4786.8,4786.7,1.66452499]
[1755993678084,0.9324,4787.5,4787.4,1.3696]
[1755993678272,20.32429,4787.5,4787.4,4.87232499]
[1755993680474,20.34899,4787.5,4787.4,3.50272499]
[1755993680681,24.34899,4787.5,4787.4,0.29492499]
[1755993680889,0.41795,4786.8,4786.7,3.4465]
[1755993681092,19.39395,4786.8,4786.7,3.96931583]
[1755993681381,19.39395,4786.8,4786.7,4.71571583]
[1755993681591,19.39395,4786.8,4786.7,4.87201583]
[1755993682084,0.4179,4787.5,4787.1,0.5455]
[1755993682282,3.2078,4788.1,4787.4,4.5774]
[1755993682283,18.978,4787.6,4787.4,4.5774]
[1755993682486,19.39788,4787.7,4787.6,0.5455]
[1755993682687,19.39788,4787.7,4787.6,1.66421583]
[1755993683083,0.41786,4787.9,4787.7,0.8241]
[1755993683285,0.41784,4788.1,4788.0,0.5455]
[1755993683490,0.41784,4788.1,4788.0,1.66421583]
[1755993683790,0.41784,4788.1,4788.0,1.30701583]
[1755993684190,0.41784,4788.1,4788.0,0.53331583]
[1755993685387,19.40184,4788.1,4788.0,0.53331583]
[1755993685591,19.40184,4788.1,4788.0,0.29461583]
[1755993685984,19.40184,4788.1,4788.0,0.53331583]
[1755993686185,19.40184,4788.1,4788.0,0.4373376]
[1755993686489,19.40184,4788.1,4788.0,0.2387]
[1755993688893,19.40484,4788.1,4788.0,1.3696]
[1755993689595,19.40484,4788.1,4788.0,1.0124]
[1755993690093,19.41072967,4788.1,4788.0,1.0124]
[1755993690693,19.41072967,4788.1,4788.0,1.3696]
[1755993691496,18.98688967,4788.1,4788.0,1.3696]
[1755993692383,0.00588967,4788.1,4788.0,1.3696]
[1755993692994,0.00588967,4788.1,4788.0,0.6213]
[1755993693191,0.00588967,4788.1,4788.0,0.2387]
[1755993694496,0.00588967,4788.1,4788.0,1.3243]
[1755993696497,0.00588967,4788.1,4788.0,0.2387]
[1755993696990,0.00588967,4788.1,4788.0,0.9885]
[1755993697197,0.00588967,4788.1,4788.0,1.3216]
[1755993698297,0.00588967,4788.1,4788.0,1.60664166]
[1755993701306,18.98288967,4788.1,4788.0,1.80263739]
[1755993703003,18.98288967,4788.1,4788.0,1.79860349]
[1755993703397,18.98288967,4788.1,4788.0,1.08520349]
[1755993704102,18.98288967,4788.1,4788.0,1.79860349]
[1755993705809,19.46670493,4788.1,4788.0,0.93350349]
[1755993706107,19.46670493,4788.1,4788.0,0.28100776]
[1755993706306,19.46670493,4788.1,4787.7,0.2178]
[1755993706500,0.48381526,4788.0,4787.8,0.47724911]
[1755993706700,0.90166526,4788.0,4787.9,0.28123495]
[1755993707103,0.90166526,4788.0,4787.9,0.51273495]
[1755993708604,0.41788,4787.6,4787.3,0.2315]
[1755993708807,19.46881526,4787.5,4787.4,0.49502226]
[1755993709001,18.985,4787.5,4787.4,0.49502226]
[1755993709210,19.4741925,4787.5,4787.4,0.49502226]
[1755993710106,19.4741925,4787.5,4787.4,0.86452226]
[1755993710304,19.4741925,4787.5,4787.4,1.19762226]
[1755993711112,19.4741925,4787.5,4787.4,1.57792226]
[1755993716116,19.4741925,4787.5,4787.4,1.24482226]
[1755993716418,19.4741925,4787.5,4787.4,1.5777436]
[1755993717218,18.985,4787.5,4787.4,1.5777436]
[1755993717517,19.47338043,4787.5,4787.4,0.8643436]
[1755993717920,0.00588967,4788.1,4788.0,1.39915]
[1755993718220,0.49428656,4788.1,4788.0,1.9955936]
[1755993718422,0.00588967,4788.1,4788.0,1.9955936]
[1755993718915,0.00588967,4788.1,4788.0,2.19159191]
[1755993721020,0.00588967,4788.1,4788.0,6.19159191]
[1755993722216,0.00588967,4788.1,4788.0,2.19159191]
[1755993725122,0.00588967,4788.1,4788.0,2.20689597]
[1755993725523,0.00588967,4788.1,4788.0,1.4559463]
[1755993725723,0.00588967,4788.1,4788.0,0.51015652]
[1755993725923,0.00588967,4788.1,4788.0,1.62125652]
[1755993726120,18.98788967,4788.1,4788.0,1.62125652]
[1755993728326,18.98788967,4788.1,4788.0,1.60738915]
[1755993730425,19.40572967,4788.1,4788.0,1.60738915]
[1755993730625,18.98788967,4788.1,4788.0,1.60738915]
[1755993733128,0.00588967,4788.1,4788.0,1.60738915]
[1755993734930,0.00588967,4788.1,4788.0,1.6236994]
[1755993735232,0.00588967,4788.1,4788.0,1.2854994]
[1755993735434,0.00588967,4788.1,4788.0,0.89050623]
[1755993735731,0.00588967,4788.1,4788.0,0.73220623]
[1755993736726,0.00588967,4788.1,4788.0,0.51260791]
[1755993737130,0.00588967,4788.1,4788.0,0.73220791]
[1755993737332,0.00588967,4788.1,4788.0,0.89050791]
[1755993738034,0.00588967,4788.1,4788.0,1.22870791]
[1755993738531,0.00588967,4788.1,4788.0,1.62370791]
[1755993742231,0.49223196,4788.1,4788.0,1.62370791]
[1755993743331,0.49223196,4788.1,4788.0,0.51260791]
[1755993743532,3.73639273,4788.1,4788.0,0.51260791]
[1755993744130,3.73639273,4788.1,4788.0,0.2315]
[1755993744333,3.73639273,4788.1,4788.0,0.51282525]
[1755993744835,3.73639273,4788.1,4788.0,0.51282513]
[1755993745335,3.73639273,4788.1,4788.0,0.2315]
[1755993745634,3.73639273,4788.1,4788.0,0.51284102]
[1755993748239,3.70003196,4788.1,4788.0,1.62396637]
[1755993751239,3.70003196,4788.1,4788.0,0.51286637]
[1755993752439,3.70003196,4788.1,4788.0,0.89076637]
[1755993752639,3.70003196,4788.1,4788.0,1.62396637]
[1755993753242,0.49223196,4788.1,4788.0,1.62396637]
[1755993754641,0.49223196,4788.1,4788.0,1.3426]
[1755993754838,0.49223196,4788.1,4788.0,1.62585094]
[1755993755635,19.47323196,4788.1,4788.0,1.62585094]
[1755993757841,19.47523196,4788.1,4788.0,1.62585094]
[1755993760140,19.47523196,4788.1,4788.0,0.73435094]
[1755993760542,19.47523196,4788.1,4788.0,1.06465094]
[1755993760948,19.47523196,4788.1,4788.0,0.51475094]
[1755993762051,19.47523196,4788.1,4788.0,0.73325094]
[1755993762753,19.47523196,4788.1,4788.0,0.88585094]
[1755993762953,19.47523196,4788.1,4788.0,1.61155094]
[1755993764547,19.47523196,4788.1,4788.0,1.3283]
[1755993764757,19.47523196,4788.1,4788.0,1.59859423]
[1755993764954,19.47523196,4788.1,4788.0,1.26829423]
[1755993766759,19.47523196,4788.1,4788.0,1.59859423]
[1755993767159,19.46934229,4788.1,4788.0,1.59859423]
[1755993767957,19.46934229,4788.1,4788.0,1.5968254]
[1755993768758,0.48634229,4788.1,4788.0,1.5968254]
[1755993769059,19.46034229,4788.1,4788.0,1.5968254]
[1755993769562,19.46623196,4788.1,4788.0,1.5968254]
[1755993770662,19.46623196,4788.1,4788.0,1.59689394]
[1755993773868,18.97988967,4788.1,4788.0,1.59689394]
[1755993774067,19.46810577,4788.1,4788.0,1.59689394]
[1755993774471,19.46810577,4788.1,4788.0,1.59702924]
[1755993775069,19.46810577,4788.1,4788.0,1.59702922]
[1755993777167,19.46810577,4788.1,4788.0,1.79303294]
[1755993777574,0.49410577,4788.1,4788.0,1.79303294]
[1755993777773,19.46210577,4788.1,4788.0,1.79303294]
[1755993778073,19.46210577,4788.1,4788.0,5.00083294]
[1755993781877,19.46210577,4788.1,4788.0,4.80482922]
[1755993782577,19.87994577,4788.1,4788.0,0.71872922]
[1755993782877,19.87994577,4788.1,4788.0,0.50022922]
[1755993783273,19.46210577,4788.1,4788.0,0.45]
[1755993783674,19.46210577,4788.1,4788.0,0.7765]
[1755993783873,19.46210577,4788.1,4788.0,0.45]
[1755993785275,19.46210577,4788.1,4788.0,0.73301883]
[1755993788883,19.46210577,4788.1,4788.0,1.05951883]
[1755993789283,19.46210577,4788.1,4788.0,0.73301883]
[1755993789486,19.46210577,4788.1,4788.0,0.28301883]
[1755993791374,19.4984668,4788.1,4788.0,0.28301883]
[1755993792280,0.41785,4788.0,4787.4,0.2274]
[1755993792487,0.4882161,4787.9,4787.5,0.2402]
[1755993792785,0.41787,4787.7,4787.6,0.2274]
[1755993792986,0.9060861,4787.7,4787.6,0.4676]
[1755993794982,0.41791,4787.3,4787.0,0.4813]
[1755993795186,19.4482161,4787.2,4787.1,0.93263923]
[1755993795581,19.4482161,4787.2,4787.1,0.49640401]
[1755993796582,19.4482161,4787.2,4787.1,0.73660401]
[1755993797983,19.4482161,4787.2,4787.1,0.49640401]
[1755993799193,19.4482161,4787.2,4787.1,0.26900401]
[1755993799391,19.4482161,4787.2,4787.1,0.49640401]
[1755993799693,19.4482161,4787.2,4787.1,0.4961797]
[1755993800193,0.41796,4786.7,4786.6,1.0923]
[1755993800493,19.8661761,4786.7,4786.6,1.36102148]
[1755993800686,19.8661761,4786.7,4786.6,1.27472148]
[1755993801387,19.8661761,4786.7,4786.6,0.89112148]
[1755993801885,19.8661761,4786.7,4786.6,0.49612148]
[1755993803093,19.8661761,4786.7,4786.6,0.49597012]
[1755993803485,30.098,4787.2,4786.6,8.01477012]
[1755993803787,30.098,4787.2,4787.1,1.3325]
[1755993803988,49.058,4787.2,4787.1,1.60107012]
[1755993804196,49.058,4787.2,4787.1,5.22679012]
[1755993806097,49.058,4787.2,4787.1,5.22668131]
[1755993806690,18.96,4787.2,4787.1,9.24748131]
[1755993806889,0.00588967,4788.1,4788.0,0.5384]
[1755993807094,19.46891952,4788.1,4788.0,1.3325]
[1755993808184,19.46891952,4788.1,4788.0,1.6009483]
[1755993810597,19.46891952,4788.1,4788.0,0.2684483]
[1755993810992,19.46891952,4788.1,4788.0,0.4958483]
[1755993811594,19.46891952,4788.1,4788.0,0.7360483]
[1755993811800,19.46891952,4788.1,4788.0,0.8908483]
[1755993812299,19.46891952,4788.1,4788.0,0.7360483]
[1755993812700,19.46891952,4788.1,4788.0,0.4676]
[1755993813000,19.46891952,4788.1,4788.0,0.73610405]
[1755993813404,19.46891952,4788.1,4788.0,1.21740405]
[1755993814201,19.46891952,4788.1,4788.0,1.59840405]
[1755993814703,0.00588967,4788.1,4788.0,1.59840405]
[1755993814999,18.96688967,4788.1,4788.0,5.79440719]
[1755993815197,0.00588967,4788.1,4788.0,5.81520719]
[1755993815390,0.0088,4789.1,4789.0,0.95086]
[1755993815597,19.46993351,4789.1,4789.0,1.59850405]
[1755993816195,19.46993351,4789.1,4789.0,1.61413816]
[1755993816900,0.50113351,4789.1,4789.0,1.61413816]
[1755993817098,8.793,4791.8,4789.2,0.7969]
[1755993817099,3.2078,4790.3,4789.2,0.7969]
[1755993817297,0.0088,4789.6,4789.5,4.1556]
[1755993817497,19.41501,4789.6,4789.5,0.28413816]
[1755993817797,0.0088,4789.1,4789.0,0.2199]
[1755993817997,19.42605,4789.1,4789.0,0.28385443]
[1755993818199,0.0088,4788.8,4788.7,0.2199]
[1755993818400,0.0088,4788.8,4788.7,1.23162358]
[1755993818601,0.0143,4788.8,4788.7,0.2199]
[1755993819494,0.0143,4788.8,4787.8,0.41786]
[1755993819495,0.0088,4788.5,4788.4,0.2199]
[1755993819693,19.0078,4788.5,4788.4,0.2199]
[1755993819897,0.0088,4787.6,4787.5,0.4939]
[1755993820101,19.0088,4787.6,4787.5,0.8761]
[1755993820496,19.0088,4787.6,4787.5,1.33]
[1755993821202,19.0,4787.6,4787.5,1.33]
[1755993822903,19.0088,4787.6,4787.5,1.33]
[1755993828110,19.0,4787.6,4787.5,1.33]
[1755993828905,19.0088,4787.6,4787.5,1.33]
[1755993829707,19.0088,4787.6,4787.5,1.74789]
[1755993829907,19.0088,4787.6,4787.5,1.33]
[1755993832808,19.0088,4787.6,4787.5,1.59708359]
[1755993833007,19.0,4787.6,4787.5,1.59708359]
[1755993833415,0.41785,4788.0,4787.5,0.46309519]
[1755993833711,0.41785,4788.0,4787.3,3.2078]
[1755993833712,0.0088,4788.0,4787.9,1.74785]
[1755993833909,18.9948,4788.0,4787.9,2.01493359]
[1755993834110,19.49371368,4788.0,4787.9,2.01493359]
[1755993836520,19.49371368,4788.0,4787.9,1.59708359]
[1755993836721,19.49921368,4788.0,4787.9,0.26708359]
[1755993837518,19.49921368,4788.0,4787.9,0.48698359]
[1755993837920,19.49371368,4788.0,4787.9,0.72098359]
[1755993838121,19.48971368,4788.0,4787.9,1.59708359]
[1755993840027,18.9908,4788.0,4787.9,1.59708359]
[1755993841130,18.9963,4788.0,4787.9,0.72098359]
[1755993841329,19.49544173,4788.0,4787.9,0.48698359]
[1755993841834,19.49544173,4788.0,4787.9,0.48719515]
[1755993842125,19.49544173,4788.0,4787.9,0.2199]
[1755993842327,19.49544173,4788.0,4787.9,0.48719186]
[1755993843528,19.49544173,4788.0,4787.9,0.72119186]
[1755993843724,19.48994173,4788.0,4787.9,0.72119186]
[1755993844723,19.48994173,4788.0,4787.9,1.22789186]
[1755993844930,19.48994173,4788.0,4787.9,1.62209186]
[1755993846831,19.49554173,4788.0,4787.9,1.27309186]
[1755993847130,19.48994173,4788.0,4787.9,1.27309186]
[1755993847330,19.48994173,4788.0,4787.9,1.62209186]
[1755993847538,0.0089,4788.7,4788.6,0.96339]
[1755993847832,18.972,4788.7,4788.6,1.97586815]
[1755993849430,30.098,4789.3,4789.2,0.41774]
[1755993849636,49.57439239,4789.3,4789.2,0.93198385]
[1755993849936,49.57999239,4789.3,4789.2,0.28314385]
[1755993851330,49.57439239,4789.3,4789.2,0.75064385]
[1755993851536,49.57439239,4789.3,4789.2,0.76105818]
[1755993852439,49.57999239,4789.3,4789.2,0.76105818]
[1755993852839,49.57999239,4789.3,4789.2,0.52465818]
[1755993855636,49.57999239,4789.3,4789.2,0.29355818]
[1755993855835,53.57999239,4789.3,4789.2,0.28795818]
[1755993856032,53.57999239,4789.3,4788.1,3.2078]
[1755993856033,0.41781,4788.4,4788.1,3.2078]
[1755993856237,18.978,4788.3,4788.1,3.2078]
[1755993856642,18.978,4788.3,4787.6,0.4675]
[1755993856830,0.91167574,4788.2,4787.6,0.2311]
[1755993857035,0.91167574,4788.2,4787.5,3.2078]
[1755993857036,0.41785,4788.0,4787.5,3.4389]
[1755993857338,18.986,4787.9,4787.6,0.2311]
[1755993857540,19.40386,4787.9,4787.7,0.2311]
[1755993857936,0.41788,4787.7,4787.5,3.2078]
[1755993858142,19.40386,4787.9,4787.5,3.85679]
[1755993858342,18.986,4787.9,4787.6,0.2311]
[1755993858535,18.986,4787.9,4787.7,0.2311]
[1755993858937,18.986,4787.9,4787.8,0.2311]
[1755993860640,3.2078,4788.6,4788.1,0.2311]
[1755993860844,19.47889348,4788.5,4788.2,0.2364]
[1755993861140,0.49389348,4788.4,4788.3,0.2311]
[1755993861641,0.49389348,4788.4,4788.3,1.3621]
[1755993861642,19.48089348,4788.4,4788.3,1.3621]
[1755993862841,19.48089348,4788.4,4788.3,1.0131]
[1755993864437,19.48089348,4788.4,4788.3,1.43092]
[1755993865044,19.48089348,4788.4,4788.3,1.0131]
[1755993866048,19.48089348,4788.4,4788.3,1.3621]
[1755993866747,19.89870348,4788.4,4788.0,0.2311]
[1755993866944,0.49389348,4788.3,4788.0,0.2311]
[1755993867249,0.41783,4788.2,4788.0,0.2311]
[1755993867749,0.41783,4788.2,4788.1,0.27842031]
[1755993867944,0.91189891,4788.2,4788.1,0.27842031]
[1755993869454,0.49406891,4788.2,4788.1,0.50952031]
[1755993870448,0.49406891,4788.2,4788.1,0.27842031]
[1755993870646,0.49406891,4788.2,4788.1,0.50952031]
[1755993871450,0.49406891,4788.2,4788.1,0.50952626]
[1755993871952,0.49406891,4788.2,4788.1,0.27842626]
[1755993872749,0.49406891,4788.2,4788.1,0.50952626]
[1755993872949,0.49406891,4788.2,4787.5,0.349]
[1755993873149,0.49406891,4788.1,4787.8,0.2311]
[1755993873356,19.89191891,4788.0,4787.9,0.5095441]
[1755993873947,19.89191891,4788.0,4787.9,0.7305441]
[1755993874449,19.47406891,4788.0,4787.9,1.2428441]
[1755993874653,19.47106891,4788.0,4787.9,1.6292441]
[1755993875649,19.47106891,4788.0,4787.9,0.5095441]
[1755993876952,19.47106891,4788.0,4787.9,0.8778441]
[1755993878057,19.47106891,4788.0,4787.9,0.87792118]
[1755993879860,19.47106891,4788.0,4787.9,0.73062118]
[1755993880056,19.47106891,4788.0,4787.9,0.50962118]
[1755993880846,0.49406891,4788.0,4787.9,1.68217118]
[1755993881057,19.49806891,4788.0,4787.9,1.61892118]
[1755993881249,19.49806891,4788.0,4787.9,1.3404]
[1755993881250,19.004,4788.0,4787.9,1.3404]
[1755993881455,19.004,4788.0,4787.9,1.61774794]
[1755993881759,19.004,4788.0,4787.9,1.61779999]
[1755993882448,19.004,4788.0,4787.9,1.8138013]
[1755993883453,3.2078,4789.5,4788.8,0.5337]
[1755993883653,3.2078,4789.5,4788.4,0.0208]
[1755993883654,19.91850959,4789.4,4789.3,1.3323]
[1755993883850,19.91850959,4789.4,4789.3,1.60969999]
[1755993884260,19.50078959,4789.4,4789.3,1.60969999]
[1755993887060,19.011,4789.4,4789.3,1.60969999]
[1755993887558,3.2078,4790.0,4789.8,0.7986]
[1755993887764,19.49630238,4789.9,4789.8,1.3323]
[1755993888364,19.49630238,4789.9,4789.8,0.9777]
[1755993888562,19.49630238,4789.9,4789.8,0.223]
[1755993889660,0.41771,4789.6,4789.3,0.223]
[1755993889861,19.009,4789.5,4789.4,0.26766052]
[1755993890265,19.009,4789.5,4789.4,0.49066052]
[1755993890563,19.49792013,4789.5,4789.4,0.223]
[1755993890968,0.48892013,4789.5,4789.2,0.221]
[1755993891263,19.009,4789.4,4789.3,0.71162724]
[1755993891672,19.009,4789.4,4789.3,0.71159987]
[1755993892065,19.009,4789.4,4789.3,0.71159772]
[1755993892865,19.009,4789.4,4789.3,0.49059772]
[1755993893368,19.009,4789.4,4789.3,0.223]
[1755993894562,19.009,4789.4,4789.3,0.444]
[1755993896164,0.41771,4789.6,4789.3,1.3323]
[1755993896367,30.095,4790.3,4789.9,0.95138]
[1755993896670,19.48671079,4790.1,4790.0,1.79572097]
[1755993897166,19.48671079,4790.1,4790.0,1.44112097]
[1755993897667,19.48671079,4790.1,4790.0,1.17365569]
[1755993897864,19.48671079,4790.1,4790.0,1.81764639]
[1755993898666,19.48671079,4790.1,4790.0,1.07664639]
[1755993898868,0.1,4790.2,4790.1,0.41766]
[1755993899059,0.58858322,4790.2,4790.1,2.23530639]
[1755993899264,0.1,4790.2,4790.1,1.81764639]
[1755993900569,0.58843138,4790.2,4790.1,0.48534639]
[1755993900963,0.58843138,4790.2,4790.1,0.48518449]
[1755993901171,0.58843138,4790.2,4790.1,0.70818449]
[1755993901375,0.58843138,4790.2,4790.1,1.81748449]
[1755993902574,1.00608138,4790.2,4790.1,1.81748449]
[1755993902970,1.00608138,4790.2,4790.1,0.48518449]
[1755993903972,1.00608138,4790.2,4790.1,0.72238449]
[1755993905266,1.00608138,4790.2,4790.1,0.95018449]
[1755993906176,1.00608138,4790.2,4790.1,0.72238449]
[1755993906371,1.00608138,4790.2,4790.1,0.52645101]
[1755993906771,1.00608138,4790.2,4790.1,0.75425101]
[1755993907074,1.00608138,4790.2,4790.1,0.90265101]
[1755993908675,0.51765,4790.2,4790.1,0.28925101]
[1755993908881,1.00623173,4790.2,4790.1,0.28925101]
[1755993909681,0.41768,4789.9,4789.8,0.2372]
[1755993909878,19.95526173,4789.9,4789.8,0.52682934]
[1755993910386,19.95526173,4789.9,4789.8,0.52699478]
[1755993913173,19.95526173,4789.9,4789.8,0.52807155]
[1755993915881,19.95526173,4789.9,4789.8,0.29087155]
[1755993918284,19.95526173,4789.9,4789.8,0.52807155]
[1755993919786,19.95526173,4789.9,4789.8,0.2372]
[1755993919986,19.95526173,4789.9,4789.8,0.52820116]
[1755993920388,19.95526173,4789.9,4789.8,0.52819919]
[1755993920580,19.95526173,4789.9,4789.8,0.2372]
[1755993920781,19.95526173,4789.9,4789.8,0.52819947]
[1755993921696,19.95526173,4789.9,4789.8,1.63679947]
[1755993922791,19.53758173,4789.9,4789.8,1.63679947]
[1755993923088,19.53758173,4789.9,4789.8,9.04054111]
[1755993923484,19.049,4789.9,4789.8,9.04054111]
[1755993926293,19.049,4789.9,4789.8,5.04054111]
[1755993926485,19.53878196,4789.9,4789.8,5.04051992]
[1755993927793,19.53878196,4789.9,4789.8,1.48291992]
[1755993927992,19.53878196,4789.9,4789.8,0.72411992]
[1755993928194,19.53878196,4789.9,4789.8,0.52819947]
[1755993928700,19.53878196,4789.9,4789.8,1.48294179]
[1755993928901,19.53878196,4789.9,4789.8,1.83274179]
[1755993929088,19.51878196,4789.9,4789.8,1.83274179]
[1755993929701,19.51878196,4789.9,4789.8,1.83273626]
[1755993930002,19.51878196,4789.9,4789.8,1.83266104]
[1755993930388,19.51878196,4789.9,4789.8,1.82009585]
[1755993930599,19.51878196,4789.9,4789.8,1.82009468]
[1755993938503,19.51878196,4789.9,4789.8,1.47029468]
[1755993939093,19.51878196,4789.9,4789.8,1.79609468]
[1755993939504,19.51878196,4789.9,4789.8,1.3218]
[1755993939705,19.51878196,4789.9,4789.8,1.79924446]
[1755993940703,19.51878196,4789.9,4789.8,1.79924416]
[1755993942205,19.51878196,4789.9,4789.8,0.71464416]
[1755993942406,19.51878196,4789.9,4789.8,0.47744416]
[1755993945306,19.51878196,4789.9,4789.8,0.28151756]
[1755993945702,23.51878196,4789.9,4789.8,0.28151756]
[1755993947103,19.51878196,4789.9,4789.8,0.28151756]
[1755993949607,19.51878196,4789.9,4789.3,0.2341]
[1755993949911,0.41771,4789.5,4789.4,0.27515615]
[1755993950210,19.92449196,4789.5,4789.4,0.27515615]
[1755993950410,0.41773,4789.4,4789.1,0.7711]
[1755993950608,0.48978196,4789.3,4789.2,1.10220277]
[1755993950809,0.48978196,4789.3,4789.2,1.42800277]